Workbook

Sheet Grafici Bilancio di Previsione
A2: ENTRATA PER TITOLI
A3: Titolo | B3: Descriz. Titolo | C3: 2019 | D3: 2020 | E3: 2021
A4: 1 | B4: Entrate correnti di natura tributaria contributiva e pereq. | C4: 7571512.47 | D4: 7621512.47 | E4: 7631512.47
A5: 2 | B5: Trasferimenti correnti | C5: 936835.17 | D5: 786835.17 | E5: 786835.17
A6: 3 | B6: Entrate extratributarie | C6: 1487977.39 | D6: 1487977.39 | E6: 1487977.39
A7: 4 | B7: Entrate in conto capitale | C7: 3640500 | D7: 839000 | E7: 1529000
A8: 5 | B8: Entrate da riduzione di attività finanziarie | C8: 0 | D8: 0 | E8: 0
A9: 6 | B9: Accensione Prestiti | C9: 1419000 | D9: 1500000 | E9: 1080000
A10: 7 | B10: Anticipazioni da istituto tesoriere/cassiere | C10: 200000 | D10: 200000 | E10: 200000
A11: 9 | B11: Entrate per conto terzi e partite di giro | C11: 2958000 | D11: 2958000 | E11: 2958000
A12: Totale complessivo | C12: =SUM(C4:C11) -> 18213825.03 | D12: =SUM(D4:D11) -> 15393325.03 | E12: =SUM(E4:E11) -> 15673325.03
A20: SPESA PER TITOLI
A21: Titolo | B21: Descr. Titolo | C21: 2019 | D21: 2020 | E21: 2021
A22: 1 | B22: Spese correnti | C22: 10044342.43 | D22: 9685962.81 | E22: 9666408.24
A23: 2 | B23: Spese in conto capitale | C23: 5251180.75 | D23: 2339000 | E23: 3109000
A24: 3 | B24: Spese per incremento attività finanziaria | C24: 0 | D24: 0 | E24: 0
A25: 4 | B25: Rimborso di prestiti | C25: 1129966.44 | D25: 259530.8 | E25: 289085.37
A26: 5 | B26: Chiusura anticipazioni ricevute da istituto tesoriere/cassiere | C26: 200000 | D26: 200000 | E26: 200000
A27: 7 | B27: Spese per conto terzi e partite di giro | C27: 2958000 | D27: 2958000 | E27: 2958000
A28: Totale complessivo | C28: =SUM(C22:C27) -> 19583489.62 | D28: =SUM(D22:D27) -> 15442493.61 | E28: 16222493.61
A40: SPESA CORRENTE 2019 - 2021 PER MISSIONI
A41: Miss. | B41: Descrizione Missione | C41: 2019 | D41: 2020 | E41: 2021
A42: 1 | B42: Servizi istituzionali | C42: 2871063.77 | D42: 2560145.51 | E42: 2560145.51
A43: 3 | B43: Ordine pubblico | C43: 485650.78 | D43: 485650.78 | E43: 485650.78
A44: 4 | B44: Istruzione | C44: 753393.98 | D44: 753393.98 | E44: 753393.98
A45: 5 | B45: Attività culturali | C45: 462184.45 | D45: 462184.45 | E45: 462184.45
A46: 6 | B46: Politiche giovanili | C46: 241348.82 | D46: 241348.82 | E46: 241348.82
A47: 7 | B47: Turismo | C47: 55535.52 | D47: 55535.52 | E47: 55535.52
A48: 8 | B48: Edilizia abitativa | C48: 143584.93 | D48: 143584.93 | E48: 143584.93
A49: 9 | B49: Tutela del territorio | C49: 2452933.19 | D49: 2432933.19 | E49: 2422933.19
A50: 10 | B50: Trasporti e diritto alla mobilità | C50: 650833 | D50: 580833 | E50: 560833
A51: 11 | B51: Soccorso civile | C51: 14405.63 | D51: 14405.63 | E51: 14405.63
A52: 12 | B52: Politiche sociali | C52: 1206473.23 | D52: 1206473.23 | E52: 1206473.23
A53: 14 | B53: Sviluppo economico | C53: 93837.2 | D53: 93837.2 | E53: 93837.2
A54: 19 | B54: Relazioni internazionali | C54: 500 | D54: 500 | E54: 500
A55: 20 | B55: Fondi e accantonamenti | C55: 494783.21 | D55: 549528.13 | E55: 564528.13
A56: 50 | B56: Debito pubblico | C56: 117814.72 | D56: 105608.44 | E56: 101053.87
A57: Totale complessivo | C57: =SUM(C42:C56) -> 10044342.43 | D57: =SUM(D42:D56) -> 9685962.81 | E57: =SUM(E42:E56) -> 9666408.24
A67: SPESA IN CONTO CAPITALE 2019 - 2021 PER MISSIONI
A68: Miss. | B68: Descrizione Missione | C68: 2019 | D68: 2020 | E68: 2021
A69: 1 | B69: Servizi istituzionali | C69: 227500 | D69: 45500 | E69: 45500
A70: 3 | B70: Ordine pubblico | C70: 0 | D70: 0 | E70: 0
A71: 4 | B71: Istruzione | C71: 120000 | D71: 1055000 | E71: 1555000
A72: 5 | B72: Attività culturali | C72: 13500 | D72: 3500 | E72: 3500
A73: 6 | B73: Politiche giovanili | C73: 1867680.75 | D73: 27500 | E73: 507500
A74: 7 | B74: Turismo | C74: 0 | D74: 0 | E74: 0
A75: 8 | B75: Edilizia abitativa | C75: 610000 | D75: 10000 | E75: 10000
A76: 9 | B76: Tutela del territorio | C76: 243500 | D76: 37500 | E76: 37500
A77: 10 | B77: Trasporti e diritto alla mobilità | C77: 1569000 | D77: 960000 | E77: 750000
A78: 11 | B78: Soccorso civile | C78: 0 | D78: 0 | E78: 0
A79: 12 | B79: Politiche sociali | C79: 600000 | D79: 200000 | E79: 200000
A80: Totale complessivo | C80: =SUM(C69:C79) -> 5251180.75 | D80: =SUM(D69:D79) -> 2339000 | E80: =SUM(E69:E79) -> 3109000
A88: INDEBITAMENTO
A89: Analisi gestione indebitamento | C89: 2015 | D89: 2016 | E89: 2017 | F89: 2018 | G89: 2019 | H89: 2020 | I89: 2021
A90: Debito residuo al 31/12 anno precedente - verso altri finanziatori | C90: 4585155.76 | D90: =C94 -> 4003472.17 | E90: 3598828.14 | F90: 3187728.14 | G90: 2763153.47 | H90: 3052187.03 | I90: 4292656.23
A91: Assunzione di mutui | C91: 0 | D91: 0 | E91: 0 | F91: 0 | G91: 1419000 | H91: 1500000 | I91: 1080000
A92: Estinzioni anticipate | C92: 0 | D92: 0 | E92: 0 | F92: 0 | G92: 846375 | H92: 0 | I92: 0
A93: Quota capitale ammortamento mutui | C93: 581683.59 | D93: 404644.03 | E93: 411100 | F93: 424574.67 | G93: 283591.44 | H93: 259530.8 | I93: 289085.37
A94: Debito residuo al 31/12 dell'esercizio in corso | C94: =C90+C91+C92-C93 -> 4003472.17 | D94: =D90+D91+D92-D93 -> 3598828.14 | E94: 3187728.14 | F94: 2763153.47 | G94: =G90+G91-G92-G93 -> 3052187.03 | H94: 4292656.23 | I94: 5083570.86
